[Event "*** Titled Tuesday Blitz"]
[Site "Chess.com"]
[Date "2019.04.02"]
[Round "6"]
[White "Vusatiuk_Vladimir"]
[Black "jcgs1030"]
[Result "0-1"]
[WhiteElo "2174"]
[BlackElo "2336"]
[TimeControl "180+2"]
[EndTime "15:22:36 PDT"]
[Termination "jcgs1030 won by checkmate"]

1. e4 {[%clk 0:03:01.9]} 1... c5 {[%clk 0:02:59]} 2. Nf3 {[%clk 0:03:02.1]} 2...
d6 {[%clk 0:03:00.3]} 3. d4 {[%clk 0:03:02.6]} 3... cxd4 {[%clk 0:03:02.2]} 4.
Qxd4 {[%clk 0:03:04.5]} 4... Nf6 {[%clk 0:03:04.1]} 5. Bb5+ {[%clk 0:03:04.5]}
5... Bd7 {[%clk 0:03:04.9]} 6. c4 {[%clk 0:03:05.1]} 6... Nc6 {[%clk 0:03:05]}
7. Bxc6 {[%clk 0:03:04.2]} 7... Bxc6 {[%clk 0:03:06.3]} 8. Nc3 {[%clk
0:03:05.7]} 8... g6 {[%clk 0:03:07.3]} 9. O-O {[%clk 0:03:06.6]} 9... Bg7 {[%clk
0:03:07.4]} 10. Qd3 {[%clk 0:03:08]} 10... O-O {[%clk 0:03:08.1]} 11. Nd4 {[%clk
0:03:09.5]} 11... Qa5 {[%clk 0:03:05.9]} 12. Bd2 {[%clk 0:02:28.3]} 12... Qh5
{[%clk 0:03:05.3]} 13. h3 {[%clk 0:02:23.5]} 13... Nd7 {[%clk 0:03:03.5]} 14.
Nd5 {[%clk 0:02:20.4]} 14... Bxd5 {[%clk 0:03:03.7]} 15. cxd5 {[%clk 0:02:03]}
15... Rfc8 {[%clk 0:02:55.7]} 16. f4 {[%clk 0:01:49.4]} 16... Nb6 {[%clk
0:02:33.3]} 17. Rac1 {[%clk 0:01:11.2]} 17... Rxc1 {[%clk 0:02:26.7]} 18. Rxc1
{[%clk 0:01:13.1]} 18... Rc8 {[%clk 0:02:28.6]} 19. Rxc8+ {[%clk 0:01:01.5]}
19... Nxc8 {[%clk 0:02:29.3]} 20. g4 {[%clk 0:01:02.8]} 20... Qh4 {[%clk
0:02:16.1]} 21. Kg2 {[%clk 0:00:55.3]} 21... h5 {[%clk 0:02:13.2]} 22. g5 {[%clk
0:00:28.3]} 22... Bxd4 {[%clk 0:01:55.9]} 23. Qxd4 {[%clk 0:00:30.2]} 23... f6
{[%clk 0:01:54.3]} 24. Qe3 {[%clk 0:00:21.4]} 24... fxg5 {[%clk 0:01:49.5]} 25.
fxg5 {[%clk 0:00:23.3]} 25... Nb6 {[%clk 0:01:43.3]} 26. b3 {[%clk 0:00:24.3]}
26... e5 {[%clk 0:01:10.8]} 27. dxe6 {[%clk 0:00:21.1]} 27... d5 {[%clk
0:01:09.1]} 28. Qf3 {[%clk 0:00:10]} 28... Qxe4 {[%clk 0:01:04.3]} 29. Qxe4
{[%clk 0:00:05.6]} 29... dxe4 {[%clk 0:01:04.1]} 30. Bb4 {[%clk 0:00:06.9]}
30... Nd5 {[%clk 0:01:04.2]} 31. Bd6 {[%clk 0:00:08.2]} 31... a6 {[%clk
0:00:53.3]} 32. Kf2 {[%clk 0:00:09.2]} 32... b5 {[%clk 0:00:54.4]} 33. Ke2
{[%clk 0:00:09.6]} 33... Kg7 {[%clk 0:00:53.5]} 34. a3 {[%clk 0:00:08.3]} 34...
Kg8 {[%clk 0:00:45.5]} 35. Kd2 {[%clk 0:00:06.1]} 35... Kg7 {[%clk 0:00:38.9]}
36. a4 {[%clk 0:00:06.1]} 36... Kg8 {[%clk 0:00:36.4]} 37. axb5 {[%clk 0:00:05]}
37... axb5 {[%clk 0:00:37.8]} 38. Ke1 {[%clk 0:00:05.2]} 38... Ne3 {[%clk
0:00:32.3]} 39. Ke2 {[%clk 0:00:04.3]} 39... Nf5 {[%clk 0:00:33.6]} 40. Bc5
{[%clk 0:00:04.7]} 40... Ng7 {[%clk 0:00:32.3]} 41. e7 {[%clk 0:00:04.4]} 41...
Kf7 {[%clk 0:00:32.7]} 42. Ke3 {[%clk 0:00:05.8]} 42... Ne6 {[%clk 0:00:34.1]}
43. Bd6 {[%clk 0:00:06.6]} 43... Nxg5 {[%clk 0:00:34.9]} 44. h4 {[%clk
0:00:08.2]} 44... Nf3 {[%clk 0:00:33.2]} 45. Kxe4 {[%clk 0:00:07.5]} 45... Nxh4
{[%clk 0:00:34.1]} 46. Kd5 {[%clk 0:00:09]} 46... Nf5 {[%clk 0:00:35.3]} 47. Bf4
{[%clk 0:00:06.2]} 47... Kxe7 {[%clk 0:00:28.4]} 48. Bg5+ {[%clk 0:00:06.5]}
48... Kd7 {[%clk 0:00:28.9]} 49. Kc5 {[%clk 0:00:07.8]} 49... Nd6 {[%clk
0:00:30.2]} 50. Bf4 {[%clk 0:00:08.9]} 50... Ne4+ {[%clk 0:00:30.2]} 51. Kxb5
{[%clk 0:00:09.7]} 51... g5 {[%clk 0:00:32.1]} 52. Be3 {[%clk 0:00:09]} 52... h4
{[%clk 0:00:29.4]} 53. Kc4 {[%clk 0:00:08.8]} 53... h3 {[%clk 0:00:28.2]} 54.
Bg1 {[%clk 0:00:09.2]} 54... Nd2+ {[%clk 0:00:27.3]} 55. Kd3 {[%clk 0:00:07.8]}
55... Nf3 {[%clk 0:00:29.1]} 56. Ke3 {[%clk 0:00:05.5]} 56... Nxg1 {[%clk
0:00:29.8]} 57. Kf2 {[%clk 0:00:07.4]} 57... h2 {[%clk 0:00:25.9]} 58. Kg2
{[%clk 0:00:08.3]} 58... Nf3 {[%clk 0:00:27.3]} 59. b4 {[%clk 0:00:08.8]} 59...
Kc6 {[%clk 0:00:28.2]} 60. Kh1 {[%clk 0:00:09.2]} 60... Kb5 {[%clk 0:00:29.4]}
61. Kg2 {[%clk 0:00:09.6]} 61... Kxb4 {[%clk 0:00:31.3]} 62. Kh1 {[%clk
0:00:10.9]} 62... Kc3 {[%clk 0:00:32.4]} 63. Kg2 {[%clk 0:00:12.8]} 63... Kd3
{[%clk 0:00:33.7]} 64. Kh1 {[%clk 0:00:14.7]} 64... Ke2 {[%clk 0:00:35]} 65. Kg2
{[%clk 0:00:16.6]} 65... g4 {[%clk 0:00:35.4]} 66. Kh1 {[%clk 0:00:18.5]} 66...
Nd4 {[%clk 0:00:33.2]} 67. Kg2 {[%clk 0:00:19.3]} 67... Nf5 {[%clk 0:00:24.6]}
68. Kh1 {[%clk 0:00:19.5]} 68... Kf1 {[%clk 0:00:23.8]} 69. Kxh2 {[%clk
0:00:19.8]} 69... g3+ {[%clk 0:00:25.7]} 70. Kh3 {[%clk 0:00:21.1]} 70... g2
{[%clk 0:00:26.6]} 71. Kh2 {[%clk 0:00:20.1]} 71... g1=Q+ {[%clk 0:00:28.4]} 72.
Kh3 {[%clk 0:00:22]} 72... Qg3# {[%clk 0:00:29.8]} 0-1

[Event "*** Titled Tuesday Blitz"]
[Site "Chess.com"]
[Date "2019.04.02"]
[Round "6"]
[White "albi1999"]
[Black "nubair1198"]
[Result "1/2-1/2"]
[WhiteElo "2636"]
[BlackElo "2662"]
[TimeControl "180+2"]
[EndTime "15:22:41 PDT"]
[Termination "Game drawn by agreement"]

1. d4 {[%clk 0:03:01.9]} 1... d5 {[%clk 0:03:00.6]} 2. c4 {[%clk 0:03:00.9]}
2... c6 {[%clk 0:03:01.9]} 3. Nf3 {[%clk 0:03:00.8]} 3... Nf6 {[%clk 0:03:03.4]}
4. e3 {[%clk 0:03:01.6]} 4... Bg4 {[%clk 0:03:04.1]} 5. Nc3 {[%clk 0:02:59]}
5... e6 {[%clk 0:03:05.4]} 6. h3 {[%clk 0:03:00.1]} 6... Bh5 {[%clk 0:03:06.6]}
7. g4 {[%clk 0:03:00]} 7... Bg6 {[%clk 0:03:07.3]} 8. Ne5 {[%clk 0:02:52.9]}
8... Nbd7 {[%clk 0:03:07.8]} 9. Nxg6 {[%clk 0:02:53.9]} 9... hxg6 {[%clk
0:03:09.7]} 10. Qb3 {[%clk 0:02:50.4]} 10... Qb6 {[%clk 0:03:06.1]} 11. g5
{[%clk 0:02:49.6]} 11... Ne4 {[%clk 0:03:06.1]} 12. Qxb6 {[%clk 0:02:47.1]}
12... axb6 {[%clk 0:03:03.9]} 13. Nxe4 {[%clk 0:02:29.2]} 13... dxe4 {[%clk
0:03:05]} 14. Bg2 {[%clk 0:02:25.7]} 14... Rh4 {[%clk 0:03:02.9]} 15. Ke2 {[%clk
0:02:24.8]} 15... Ra5 {[%clk 0:03:02.4]} 16. c5 {[%clk 0:02:17.1]} 16... bxc5
{[%clk 0:03:02.8]} 17. Bd2 {[%clk 0:02:17.2]} 17... Rb5 {[%clk 0:03:03.8]} 18.
a4 {[%clk 0:02:17.7]} 18... Rxb2 {[%clk 0:03:04.1]} 19. Rhb1 {[%clk 0:02:18.9]}
19... Rxb1 {[%clk 0:03:04.4]} 20. Rxb1 {[%clk 0:02:20.8]} 20... cxd4 {[%clk
0:03:01.6]} 21. exd4 {[%clk 0:02:20.4]} 21... b6 {[%clk 0:02:57.9]} 22. a5
{[%clk 0:02:15]} 22... bxa5 {[%clk 0:02:58.1]} 23. Bxa5 {[%clk 0:02:16.5]} 23...
Be7 {[%clk 0:02:52.5]} 24. Bd2 {[%clk 0:02:11.1]} 24... f5 {[%clk 0:02:49.5]}
25. Ra1 {[%clk 0:02:03.8]} 25... Nb6 {[%clk 0:02:40.9]} 26. Ra6 {[%clk
0:02:03.6]} 26... Nc4 {[%clk 0:02:39.9]} 27. Bc3 {[%clk 0:01:47.6]} 27... Nd6
{[%clk 0:01:25.2]} 28. Rxc6 {[%clk 0:00:59.7]} 28... f4 {[%clk 0:01:20.8]} 29.
Kd1 {[%clk 0:00:52]} 29... Kd7 {[%clk 0:01:16.9]} 30. Ra6 {[%clk 0:00:52.8]}
30... Nb5 {[%clk 0:01:11.1]} 31. Bb2 {[%clk 0:00:49.3]} 31... Nc7 {[%clk
0:01:04.5]} 32. Ra7 {[%clk 0:00:46.4]} 32... f3 {[%clk 0:01:04.9]} 33. Bf1
{[%clk 0:00:47.2]} 33... Bxg5 {[%clk 0:01:06]} 34. d5 {[%clk 0:00:46.2]} 34...
Bf4 {[%clk 0:01:00.9]} 35. dxe6+ {[%clk 0:00:44.1]} 35... Kxe6 {[%clk
0:01:02.7]} 36. Bxg7 {[%clk 0:00:36.8]} 36... Rh7 {[%clk 0:00:59.1]} 37. Bc4+
{[%clk 0:00:36.2]} 37... Kd6 {[%clk 0:01:00.1]} 38. Bc3 {[%clk 0:00:32.8]} 38...
Rxh3 {[%clk 0:00:59.6]} 39. Ba5 {[%clk 0:00:28.1]} 39... Rh1+ {[%clk 0:00:58.2]}
40. Kc2 {[%clk 0:00:26.7]} 40... Rc1+ {[%clk 0:00:57.1]} 41. Kb3 {[%clk
0:00:26.9]} 41... Kc6 {[%clk 0:00:53.6]} 42. Bxc7 {[%clk 0:00:22.9]} 42... Bxc7
{[%clk 0:00:55.5]} 43. Ra6+ {[%clk 0:00:20.1]} 43... Bb6 {[%clk 0:00:56.7]} 44.
Ra8 {[%clk 0:00:20.6]} 44... Rb1+ {[%clk 0:00:53.5]} 45. Kc2 {[%clk 0:00:21.1]}
45... Rf1 {[%clk 0:00:54.8]} 46. Bxf1 {[%clk 0:00:17.9]} 46... Bxf2 {[%clk
0:00:56]} 47. Ra5 {[%clk 0:00:15.9]} 47... Bb6 {[%clk 0:00:54.6]} 48. Rg5 {[%clk
0:00:13.7]} 48... e3 {[%clk 0:00:53.5]} 49. Kd3 {[%clk 0:00:14.4]} 49... e2
{[%clk 0:00:54.2]} 50. Rxg6+ {[%clk 0:00:15.8]} 50... Kc7 {[%clk 0:00:55.1]} 51.
Bxe2 {[%clk 0:00:15.4]} 51... fxe2 {[%clk 0:00:57]} 52. Kxe2 {[%clk 0:00:16.9]}
52... Bc5 {[%clk 0:00:56.2]} 53. Kd3 {[%clk 0:00:18.8]} 53... Bd6 {[%clk
0:00:57.8]} 54. Kc4 {[%clk 0:00:20.7]} 54... Kc6 {[%clk 0:00:59.3]} 55. Rh6
{[%clk 0:00:21]} 55... Kd7 {[%clk 0:00:58.7]} 56. Kd5 {[%clk 0:00:22.4]} 56...
Bf4 {[%clk 0:00:55.9]} 57. Ra6 {[%clk 0:00:23.1]} 57... Kc7 {[%clk 0:00:55.7]}
58. Rf6 {[%clk 0:00:21.6]} 58... Bg3 {[%clk 0:00:56.4]} 59. Ra6 {[%clk
0:00:22.5]} 59... Bf4 {[%clk 0:00:56.5]} 60. Ra4 {[%clk 0:00:23.7]} 60... Bg3
{[%clk 0:00:57.5]} 61. Rc4+ {[%clk 0:00:24]} 61... Kb7 {[%clk 0:00:57.8]} 62.
Kc5 {[%clk 0:00:25.5]} 62... Bf2+ {[%clk 0:00:55.3]} 63. Kb5 {[%clk 0:00:26.6]}
63... Bg3 {[%clk 0:00:50.1]} 64. Rg4 {[%clk 0:00:27.2]} 64... Bf2 {[%clk
0:00:49]} 65. Rg7+ {[%clk 0:00:28.1]} 65... Ka8 {[%clk 0:00:48.6]} 66. Kc6
{[%clk 0:00:28.7]} 66... Be3 {[%clk 0:00:48]} 67. Rg3 {[%clk 0:00:28.6]} 67...
Bf2 {[%clk 0:00:46]} 68. Rf3 {[%clk 0:00:29.1]} 68... Bd4 {[%clk 0:00:45.7]} 69.
Ra3+ {[%clk 0:00:30.3]} 69... Kb8 {[%clk 0:00:42.8]} 70. Rb3+ {[%clk 0:00:30.5]}
70... Ka8 {[%clk 0:00:42.9]} 71. Rd3 {[%clk 0:00:31.6]} 71... Bg1 {[%clk
0:00:41.5]} 72. Rd8+ {[%clk 0:00:32.5]} 72... Ka7 {[%clk 0:00:42.4]} 73. Rd7+
{[%clk 0:00:33]} 73... Ka8 {[%clk 0:00:43.8]} 74. Rf7 {[%clk 0:00:33.6]} 74...
Be3 {[%clk 0:00:40.6]} 75. Kb5 {[%clk 0:00:34.3]} 75... Bd4 {[%clk 0:00:39.2]}
76. Ka6 {[%clk 0:00:35]} 76... Kb8 {[%clk 0:00:40.6]} 77. Rd7 {[%clk 0:00:35.4]}
77... Be3 {[%clk 0:00:41.1]} 78. Kb5 {[%clk 0:00:36.7]} 78... Ka8 {[%clk
0:00:40]} 79. Kc6 {[%clk 0:00:37.9]} 79... Bf2 {[%clk 0:00:40.5]} 80. Rd2 {[%clk
0:00:38.6]} 80... Be3 {[%clk 0:00:41.1]} 81. Rb2 {[%clk 0:00:38.8]} 81... Bd4
{[%clk 0:00:41.3]} 82. Rb3 {[%clk 0:00:39.7]} 82... Bf2 {[%clk 0:00:41.6]}
1/2-1/2

[Event "*** Titled Tuesday Blitz"]
[Site "Chess.com"]
[Date "2019.04.02"]
[Round "6"]
[White "aa175"]
[Black "Andrew-FB00"]
[Result "0-1"]
[WhiteElo "1928"]
[BlackElo "1865"]
[TimeControl "180+2"]
[EndTime "15:22:54 PDT"]
[Termination "Andrew-FB00 won by checkmate"]

1. e4 {[%clk 0:02:57.3]} 1... e5 {[%clk 0:03:00.4]} 2. Nf3 {[%clk 0:02:56.1]}
2... Nc6 {[%clk 0:02:59.6]} 3. Bc4 {[%clk 0:02:56.2]} 3... Bc5 {[%clk
0:02:59.3]} 4. d3 {[%clk 0:02:57.3]} 4... h6 {[%clk 0:02:56.4]} 5. Nc3 {[%clk
0:02:58.4]} 5... d6 {[%clk 0:02:55.6]} 6. Be3 {[%clk 0:02:59.9]} 6... Bb6 {[%clk
0:02:55.8]} 7. O-O {[%clk 0:03:00.5]} 7... Nf6 {[%clk 0:02:56.2]} 8. Bxb6 {[%clk
0:03:00.9]} 8... axb6 {[%clk 0:02:56.9]} 9. Nd5 {[%clk 0:03:02]} 9... Bg4 {[%clk
0:02:54.8]} 10. h3 {[%clk 0:03:00.3]} 10... Bh5 {[%clk 0:02:55.2]} 11. g4 {[%clk
0:02:58.7]} 11... Bg6 {[%clk 0:02:55]} 12. Nh4 {[%clk 0:02:56.9]} 12... Nxd5
{[%clk 0:02:42.5]} 13. Nxg6 {[%clk 0:02:54.4]} 13... fxg6 {[%clk 0:02:30.5]} 14.
Bxd5 {[%clk 0:02:55.7]} 14... Qh4 {[%clk 0:02:27.7]} 15. Qf3 {[%clk 0:02:50.9]}
15... Rf8 {[%clk 0:02:27]} 16. Qg3 {[%clk 0:02:45.4]} 16... Qg5 {[%clk
0:02:22.3]} 17. Kg2 {[%clk 0:02:28.8]} 17... O-O-O {[%clk 0:02:14.2]} 18. a4
{[%clk 0:02:23.2]} 18... Nd4 {[%clk 0:02:13.1]} 19. h4 {[%clk 0:01:55.1]} 19...
Qd2 {[%clk 0:02:06.4]} 20. a5 {[%clk 0:01:28.8]} 20... bxa5 {[%clk 0:01:59.2]}
21. c3 {[%clk 0:01:26]} 21... Ne2 {[%clk 0:01:46]} 22. Qe3 {[%clk 0:01:06.1]}
22... Nf4+ {[%clk 0:01:41.7]} 23. Kh2 {[%clk 0:00:59.5]} 23... Qxd3 {[%clk
0:01:37.5]} 24. Rxa5 {[%clk 0:00:51]} 24... c6 {[%clk 0:01:24.2]} 25. Bxc6
{[%clk 0:00:13.5]} 25... bxc6 {[%clk 0:00:57.3]} 26. Ra8+ {[%clk 0:00:10.1]}
26... Kd7 {[%clk 0:00:56.9]} 27. Ra7+ {[%clk 0:00:03.3]} 27... Ke6 {[%clk
0:00:52.3]} 28. Qxd3 {[%clk 0:00:03.6]} 28... Nxd3 {[%clk 0:00:49.8]} 29. Rxg7
{[%clk 0:00:04.9]} 29... Rg8 {[%clk 0:00:38]} 30. Rh7 {[%clk 0:00:04.7]} 30...
Nxb2 {[%clk 0:00:30.2]} 31. Rb1 {[%clk 0:00:02.3]} 31... Nd3 {[%clk 0:00:28.4]}
32. Rbb7 {[%clk 0:00:03.2]} 32... Rde8 {[%clk 0:00:21.5]} 33. Rxh6 {[%clk
0:00:02.8]} 33... Nxf2 {[%clk 0:00:21.5]} 34. Kg3 {[%clk 0:00:03.2]} 34... Nxe4+
{[%clk 0:00:22]} 35. Kf3 {[%clk 0:00:04.4]} 35... Nxc3 {[%clk 0:00:22.8]} 36. h5
{[%clk 0:00:04.1]} 36... Kf6 {[%clk 0:00:18.4]} 37. hxg6 {[%clk 0:00:03.7]}
37... Rxg6 {[%clk 0:00:18.2]} 38. Rhh7 {[%clk 0:00:04.4]} 38... Nd5 {[%clk
0:00:17.3]} 39. Rbf7+ {[%clk 0:00:04.2]} 39... Ke6 {[%clk 0:00:15.3]} 40. Ra7
{[%clk 0:00:03.5]} 40... Rg5 {[%clk 0:00:12.3]} 41. Rh6+ {[%clk 0:00:02.8]}
41... Nf6 {[%clk 0:00:10.6]} 42. Ra6 {[%clk 0:00:02.6]} 42... c5 {[%clk
0:00:05.8]} 43. Rc6 {[%clk 0:00:02.6]} 43... Rg7 {[%clk 0:00:06.3]} 44. Ra6
{[%clk 0:00:02.6]} 44... Rf8 {[%clk 0:00:03]} 45. Ke3 {[%clk 0:00:02.9]} 45...
Kd5 {[%clk 0:00:02.3]} 46. Rh1 {[%clk 0:00:02.7]} 46... Nxg4+ {[%clk 0:00:03.3]}
47. Ke2 {[%clk 0:00:03]} 47... Rgf7 {[%clk 0:00:03.9]} 48. Rd1+ {[%clk
0:00:03.1]} 48... Ke4 {[%clk 0:00:03.8]} 49. Rdxd6 {[%clk 0:00:05]} 49... Rf2+
{[%clk 0:00:04.3]} 50. Kd1 {[%clk 0:00:06.1]} 50... Rf1+ {[%clk 0:00:05.5]} 51.
Kc2 {[%clk 0:00:06.5]} 51... R8f2+ {[%clk 0:00:06.4]} 52. Kb3 {[%clk 0:00:05.6]}
52... Rb1+ {[%clk 0:00:07]} 53. Ka3 {[%clk 0:00:03.6]} 53... Rf3+ {[%clk
0:00:06.6]} 54. Ka2 {[%clk 0:00:04.2]} 54... Re1 {[%clk 0:00:05.9]} 55. Rg6
{[%clk 0:00:03.4]} 55... Rf2+ {[%clk 0:00:05.3]} 56. Kb3 {[%clk 0:00:03.9]}
56... Rb1+ {[%clk 0:00:05.5]} 57. Ka3 {[%clk 0:00:02.4]} 57... Ra1+ {[%clk
0:00:05.5]} 58. Kb3 {[%clk 0:00:02.8]} 58... Rxa6 {[%clk 0:00:05.6]} 59. Rxg4+
{[%clk 0:00:04.3]} 59... Kf5 {[%clk 0:00:05.5]} 60. Rg8 {[%clk 0:00:06.2]} 60...
Rb6+ {[%clk 0:00:06.1]} 61. Kc4 {[%clk 0:00:06.8]} 61... Rf4+ {[%clk 0:00:07]}
62. Kd5 {[%clk 0:00:07.5]} 62... c4 {[%clk 0:00:06.7]} 63. Rf8+ {[%clk
0:00:07.8]} 63... Kg5 {[%clk 0:00:06.6]} 64. Rg8+ {[%clk 0:00:07.6]} 64... Rg6
{[%clk 0:00:06.2]} 65. Re8 {[%clk 0:00:07.9]} 65... Rf5 {[%clk 0:00:04.9]} 66.
Kxc4 {[%clk 0:00:07]} 66... Kf4 {[%clk 0:00:05.8]} 67. Kd5 {[%clk 0:00:05.5]}
67... e4+ {[%clk 0:00:04.6]} 68. Kd4 {[%clk 0:00:07.4]} 68... Rd6+ {[%clk
0:00:02.6]} 69. Kc3 {[%clk 0:00:08.2]} 69... e3 {[%clk 0:00:03.3]} 70. Re7
{[%clk 0:00:08]} 70... Kf3 {[%clk 0:00:04.4]} 71. Kc2 {[%clk 0:00:08.1]} 71...
e2 {[%clk 0:00:05.4]} 72. Rxe2 {[%clk 0:00:09.4]} 72... Kxe2 {[%clk 0:00:06.1]}
73. Kc3 {[%clk 0:00:11.3]} 73... Rfd5 {[%clk 0:00:07]} 74. Kb4 {[%clk
0:00:13.2]} 74... Rd4+ {[%clk 0:00:07.7]} 75. Kc5 {[%clk 0:00:13.8]} 75... R6d5+
{[%clk 0:00:07.9]} 76. Kc6 {[%clk 0:00:15.7]} 76... Rh5 {[%clk 0:00:08.5]} 77.
Kc7 {[%clk 0:00:17.6]} 77... Rg4 {[%clk 0:00:09.6]} 78. Kb8 {[%clk 0:00:19.5]}
78... Rg6 {[%clk 0:00:10.6]} 79. Kc8 {[%clk 0:00:21.4]} 79... Rh7 {[%clk
0:00:12]} 80. Kd8 {[%clk 0:00:23.3]} 80... Rg8# {[%clk 0:00:13.6]} 0-1

[Event "*** Titled Tuesday Blitz"]
[Site "Chess.com"]
[Date "2019.04.02"]
[Round "6"]
[White "SloLev"]
[Black "ENEASZ"]
[Result "0-1"]
[WhiteElo "2499"]
[BlackElo "2438"]
[TimeControl "180+2"]
[EndTime "15:23:11 PDT"]
[Termination "ENEASZ won by resignation"]

1. e4 {[%clk 0:03:01.9]} 1... d6 {[%clk 0:03:00.3]} 2. d4 {[%clk 0:03:02.6]}
2... Nf6 {[%clk 0:03:01.5]} 3. Nc3 {[%clk 0:03:04.1]} 3... e5 {[%clk 0:03:03.1]}
4. dxe5 {[%clk 0:03:04.5]} 4... dxe5 {[%clk 0:03:05]} 5. Qxd8+ {[%clk
0:03:05.1]} 5... Kxd8 {[%clk 0:03:06.9]} 6. Nf3 {[%clk 0:03:02.8]} 6... Bd6
{[%clk 0:03:07.1]} 7. Bc4 {[%clk 0:03:01.5]} 7... Be6 {[%clk 0:03:07.5]} 8. Bxe6
{[%clk 0:02:57.7]} 8... fxe6 {[%clk 0:03:09.4]} 9. Be3 {[%clk 0:02:53]} 9... a6
{[%clk 0:03:09.4]} 10. h3 {[%clk 0:02:53.7]} 10... Ke7 {[%clk 0:03:10.1]} 11.
Nd2 {[%clk 0:02:51]} 11... Nbd7 {[%clk 0:02:58.3]} 12. g4 {[%clk 0:02:50.8]}
12... b5 {[%clk 0:02:55.8]} 13. f3 {[%clk 0:02:43.5]} 13... Rhb8 {[%clk
0:02:33.2]} 14. Ke2 {[%clk 0:02:39.3]} 14... Nb6 {[%clk 0:02:26.1]} 15. b3
{[%clk 0:02:38.7]} 15... Nfd7 {[%clk 0:02:15.2]} 16. h4 {[%clk 0:02:32.5]} 16...
Bc5 {[%clk 0:01:58]} 17. Bg5+ {[%clk 0:02:27]} 17... Kf7 {[%clk 0:01:54.1]} 18.
a4 {[%clk 0:02:27.2]} 18... Bd4 {[%clk 0:01:50.9]} 19. axb5 {[%clk 0:01:55.7]}
19... Bxc3 {[%clk 0:01:50.2]} 20. Rxa6 {[%clk 0:01:56.1]} 20... Rxa6 {[%clk
0:01:47.7]} 21. bxa6 {[%clk 0:01:58]} 21... Ra8 {[%clk 0:01:49.1]} 22. Nb1
{[%clk 0:01:49.3]} 22... Bb4 {[%clk 0:01:37.8]} 23. Rd1 {[%clk 0:01:27]} 23...
Rxa6 {[%clk 0:01:37.4]} 24. Bd8 {[%clk 0:01:24.6]} 24... Ra2 {[%clk 0:01:31.9]}
25. Kd3 {[%clk 0:01:23.9]} 25... Bd6 {[%clk 0:00:49.3]} 26. Rd2 {[%clk
0:01:11.4]} 26... Nc5+ {[%clk 0:00:41.8]} 27. Ke2 {[%clk 0:01:12.1]} 27... Nb7
{[%clk 0:00:29.1]} 28. Bg5 {[%clk 0:00:54.9]} 28... Bb4 {[%clk 0:00:27.7]} 29.
c3 {[%clk 0:00:49.8]} 29... Rxd2+ {[%clk 0:00:27.7]} 30. Bxd2 {[%clk 0:00:48.1]}
30... Bd6 {[%clk 0:00:25.1]} 31. h5 {[%clk 0:00:49.2]} 31... Nc5 {[%clk
0:00:25.2]} 32. b4 {[%clk 0:00:48.3]} 32... Ncd7 {[%clk 0:00:22.8]} 33. Na3
{[%clk 0:00:45.3]} 33... c5 {[%clk 0:00:17.1]} 34. Nb5 {[%clk 0:00:45.6]} 34...
Be7 {[%clk 0:00:18]} 35. bxc5 {[%clk 0:00:36.1]} 35... Bxc5 {[%clk 0:00:18.6]}
36. Be1 {[%clk 0:00:33.3]} 36... Nc4 {[%clk 0:00:17.6]} 37. Bg3 {[%clk
0:00:34.4]} 37... Ndb6 {[%clk 0:00:17.4]} 38. Nc7 {[%clk 0:00:34.1]} 38... Ke7
{[%clk 0:00:16.4]} 39. Nb5 {[%clk 0:00:33.4]} 39... h6 {[%clk 0:00:11.8]} 40.
Kd3 {[%clk 0:00:28.6]} 40... Kd7 {[%clk 0:00:10.6]} 41. Na7 {[%clk 0:00:22.6]}
41... Bg1 {[%clk 0:00:09.9]} 42. f4 {[%clk 0:00:17.5]} 42... exf4 {[%clk
0:00:08.7]} 43. Bxf4 {[%clk 0:00:19.4]} 43... e5 {[%clk 0:00:09.6]} 44. Bc1
{[%clk 0:00:19.6]} 44... Bc5 {[%clk 0:00:06.2]} 45. g5 {[%clk 0:00:19.5]} 45...
Bf8 {[%clk 0:00:07.3]} 46. gxh6 {[%clk 0:00:19.7]} 46... gxh6 {[%clk 0:00:09.2]}
47. Nb5 {[%clk 0:00:20.8]} 47... Kc6 {[%clk 0:00:09.5]} 48. Na7+ {[%clk
0:00:21.8]} 48... Kd6 {[%clk 0:00:10.3]} 49. Nb5+ {[%clk 0:00:22.3]} 49... Ke6
{[%clk 0:00:10.3]} 50. Nc7+ {[%clk 0:00:22.1]} 50... Kf6 {[%clk 0:00:09.7]} 51.
Nd5+ {[%clk 0:00:23.4]} 51... Nxd5 {[%clk 0:00:10.4]} 52. exd5 {[%clk
0:00:23.6]} 52... Na5 {[%clk 0:00:09.6]} 53. c4 {[%clk 0:00:23.9]} 53... Nb7
{[%clk 0:00:10.8]} 54. Be3 {[%clk 0:00:20.7]} 54... Nc5+ {[%clk 0:00:11.7]} 55.
Ke2 {[%clk 0:00:20.7]} 55... Kf5 {[%clk 0:00:10.8]} 56. Kf3 {[%clk 0:00:20.1]}
56... e4+ {[%clk 0:00:10.7]} 57. Kg3 {[%clk 0:00:21.1]} 57... Bd6+ {[%clk
0:00:11.2]} 58. Kh3 {[%clk 0:00:22.5]} 58... Bf8 {[%clk 0:00:10.9]} 59. Kg3
{[%clk 0:00:23]} 59... Nd7 {[%clk 0:00:10.5]} 60. Bf4 {[%clk 0:00:21.1]} 60...
Nf6 {[%clk 0:00:11]} 61. Bc1 {[%clk 0:00:16]} 61... Nxh5+ {[%clk 0:00:11.9]} 62.
Kf2 {[%clk 0:00:17.1]} 62... Nf6 {[%clk 0:00:12.4]} 63. Ke2 {[%clk 0:00:17.1]}
63... h5 {[%clk 0:00:12.5]} 64. Be3 {[%clk 0:00:18.2]} 64... Nd7 {[%clk
0:00:13.4]} 65. Bf2 {[%clk 0:00:17.3]} 65... Bd6 {[%clk 0:00:14.1]} 66. Bh4
{[%clk 0:00:16.8]} 66... Kg4 {[%clk 0:00:13.7]} 67. Be1 {[%clk 0:00:16.9]} 67...
Bc5 {[%clk 0:00:14.1]} 68. Kf1 {[%clk 0:00:10]} 68... Kf3 {[%clk 0:00:14.1]} 69.
Bd2 {[%clk 0:00:06.8]} 69... e3 {[%clk 0:00:14.8]} 70. Bxe3 {[%clk 0:00:03.8]}
70... Kxe3 {[%clk 0:00:15]} 71. Kg2 {[%clk 0:00:04.5]} 71... Kd4 {[%clk
0:00:15.8]} 72. Kh3 {[%clk 0:00:05.6]} 72... Be7 {[%clk 0:00:16.2]} 73. d6
{[%clk 0:00:04.8]} 73... Bxd6 {[%clk 0:00:17.3]} 74. Kh4 {[%clk 0:00:05.4]}
74... Nf6 {[%clk 0:00:18.5]} 75. Kg5 {[%clk 0:00:06.9]} 75... Kxc4 {[%clk
0:00:19.7]} 76. Kh4 {[%clk 0:00:08.3]} 76... Bf4 {[%clk 0:00:19.9]} 77. Kh3
{[%clk 0:00:08.7]} 77... Kd4 {[%clk 0:00:21.6]} 78. Kg2 {[%clk 0:00:09.8]} 78...
Ke4 {[%clk 0:00:23.2]} 79. Kh3 {[%clk 0:00:11.7]} 79... Kf5 {[%clk 0:00:24.6]}
80. Kg2 {[%clk 0:00:13.1]} 80... Kg4 {[%clk 0:00:26.3]} 81. Kh1 {[%clk 0:00:14]}
81... h4 {[%clk 0:00:28.2]} 82. Kg1 {[%clk 0:00:15.4]} 82... h3 {[%clk 0:00:29]}
83. Kh1 {[%clk 0:00:16.8]} 83... Bg3 {[%clk 0:00:29.9]} 84. Kg1 {[%clk 0:00:18]}
84... Nh5 {[%clk 0:00:31.5]} 85. Kh1 {[%clk 0:00:19.9]} 85... Nf4 {[%clk
0:00:33.2]} 86. Kg1 {[%clk 0:00:21.8]} 86... Kf3 {[%clk 0:00:34.7]} 87. Kh1
{[%clk 0:00:23.7]} 87... Nd3 {[%clk 0:00:35.9]} 88. Kg1 {[%clk 0:00:25.6]} 88...
Nf2 {[%clk 0:00:35.4]} 89. Kf1 {[%clk 0:00:25.8]} 89... h2 {[%clk 0:00:35.3]}
0-1